bitfinex/quotes_ETHUSD_20220227
["timestamp","ask_amount","ask_price","bid_price","bid_amount"]
[1645930370577,1.62701794,2707.0,2706.8,0.3]
[1645930370780,1.6217187,2707.5,2706.9,1.533]
[1645930370978,1.6217187,2707.5,2707.0,3.5]
[1645930371175,1.6217187,2707.5,2707.1,0.533]
[1645930371377,1.6217187,2707.5,2707.2,0.533]
[1645930371581,1.6217187,2707.5,2707.3,0.533]
[1645930371779,1.6217187,2707.5,2707.4,1.0]
[1645930371980,4.7434694,2708.7,2707.4,1.533]
[1645930371981,1.6217187,2707.7,2707.4,1.533]
[1645930372421,0.1477,2708.6,2707.4,1.533]
[1645930372619,1.6217187,2707.9,2707.4,1.533]
[1645930373218,0.3694,2708.5,2707.4,0.533]
[1645930373420,1.6217187,2707.6,2707.4,0.533]
[1645930375022,1.62737374,2707.6,2707.4,0.533]
[1645930375877,1.6217187,2707.6,2706.8,2.56019108]
[1645930376077,1.519,2708.2,2706.8,2.56019108]
[1645930376278,1.6217187,2707.2,2706.8,2.56019108]
[1645930376478,1.6217187,2707.2,2706.8,2.38011]
[1645930376678,1.6217187,2707.0,2706.8,3.73142131]
[1645930376882,1.6217187,2707.0,2706.9,0.3]
[1645930377278,1.6217187,2707.0,2706.8,5.03142131]
[1645930377479,1.6217187,2707.0,2706.9,0.3]
[1645930377678,1.6217187,2707.0,2706.9,0.29008104]
[1645930378279,1.6217187,2707.0,2706.9,1.29008104]
[1645930378480,1.6217187,2707.2,2706.9,0.29008104]
[1645930378679,1.6217187,2707.2,2707.1,1.0]
[1645930378880,2.8395187,2707.6,2707.1,1.0]
[1645930379078,1.6217187,2707.6,2707.1,1.0]
[1645930379284,1.6217187,2707.6,2707.1,1.3]
[1645930379487,1.6217187,2707.6,2707.4,1.11322403]
[1645930379731,0.0041307,2707.5,2707.4,1.11322403]
[1645930380130,0.0041307,2707.5,2707.4,1.41322403]
[1645930380433,0.0041307,2707.5,2707.4,2.94622403]
[1645930380633,1.6217187,2707.9,2707.4,2.94622403]
[1645930380832,1.6217187,2707.9,2707.4,3.86961403]
[1645930381033,0.0041307,2707.6,2707.4,3.16961403]
[1645930381232,0.0041307,2707.6,2707.5,1.0]
[1645930381433,0.0041307,2707.6,2707.5,5.033]
[1645930381834,0.0041307,2707.6,2707.5,2.533]
[1645930382138,1.6217187,2707.9,2707.8,1.0]
[1645930382332,1.6217187,2707.9,2707.8,1.533]
[1645930383372,1.6217187,2707.9,2707.8,0.533]
[1645930385280,1.6217187,2707.9,2707.8,1.533]
[1645930385881,1.6217187,2707.9,2707.8,0.533]
[1645930386883,1.6217187,2707.9,2707.8,1.533]
[1645930387716,1.6217187,2707.9,2707.8,0.533]
[1645930387917,1.6217187,2707.9,2707.7,0.3]
[1645930387918,1.9911187,2707.9,2707.7,0.3]
[1645930388118,1.9911187,2707.9,2707.4,1.6]
[1645930388317,1.9911187,2707.9,2707.4,0.3]
[1645930388717,1.9911187,2707.9,2707.0,5.4233]
[1645930388921,1.9911187,2707.9,2707.0,1.6]
[1645930389121,1.9911187,2707.9,2707.1,1.0]
[1645930389420,0.00565962,2707.6,2707.1,1.0]
[1645930389827,0.00565962,2707.6,2707.0,0.78008108]
[1645930390024,0.00565962,2707.6,2707.0,2.133]
[1645930390225,0.00565962,2707.6,2707.0,1.833]
[1645930390425,1.9911187,2707.9,2707.1,0.92357]
[1645930390426,1.6217187,2707.2,2707.1,0.92357]
[1645930391679,1.6217187,2707.2,2707.1,1.22357]
[1645930395132,0.3694,2708.1,2707.1,1.22357]
[1645930395329,1.6217187,2707.4,2707.1,1.75657]
[1645930395529,0.00565977,2707.3,2707.2,1.0]
[1645930396332,1.6217187,2707.4,2707.2,1.0]
[1645930396729,1.62737842,2707.4,2707.2,1.0]
[1645930397635,1.6217187,2707.4,2707.2,1.0]
[1645930397830,1.62737839,2707.4,2707.2,1.0]
[1645930398477,0.00565969,2707.4,2707.2,1.0]
[1645930398675,1.62639259,2707.4,2707.2,1.0]
[1645930398877,1.6207329,2707.4,2707.1,3.05657]
[1645930399075,1.62639259,2707.4,2707.3,1.0]
[1645930399976,1.6207329,2707.4,2707.2,0.3]
[1645930400377,1.6207329,2707.4,2707.3,1.0]
[1645930400678,1.6207329,2707.4,2707.1,1.75657]
[1645930400876,1.6207329,2707.4,2707.1,3.75657]
[1645930401079,1.6207329,2707.4,2707.1,1.75657]
[1645930401280,1.6207329,2707.4,2707.2,1.0]
[1645930401482,1.62639262,2707.4,2707.2,0.533]
[1645930401684,1.62639262,2707.4,2707.3,1.0]
[1645930401881,1.62639262,2707.4,2707.3,1.833]
[1645930402339,1.6207329,2707.8,2707.3,1.833]
[1645930402541,1.6207329,2708.1,2707.6,0.92323]
[1645930402750,3.9833,2708.6,2707.7,4.033]
[1645930402751,0.02263438,2708.0,2707.7,4.033]
[1645930402936,0.02263438,2708.0,2707.9,1.0]
[1645930403136,0.02263438,2708.0,2707.9,1.533]
[1645930403332,0.02263438,2708.0,2707.9,1.833]
[1645930403532,3.9833,2708.6,2708.2,1.16481832]
[1645930403733,3.9833,2708.6,2708.3,1.533]
[1645930403933,1.6207329,2708.4,2708.3,1.533]
[1645930404133,1.6207329,2708.4,2708.3,0.533]
[1645930409943,1.6207329,2708.4,2708.1,1.27424532]
[1645930410143,1.6207329,2708.4,2708.1,2.27424532]
[1645930410341,1.6207329,2708.4,2708.2,0.533]
[1645930411144,1.62606804,2708.4,2708.2,0.533]
[1645930411941,1.6207329,2708.4,2708.2,0.533]
[1645930412443,1.62639208,2708.4,2708.3,1.0]
[1645930412642,1.62639208,2708.4,2708.3,1.533]
[1645930413241,1.6207329,2708.4,2708.3,1.533]
[1645930414474,1.6207329,2708.4,2708.3,0.533]
[1645930417831,1.6207329,2708.4,2708.3,1.533]
[1645930418831,1.6207329,2708.4,2708.3,0.533]
[1645930420231,1.6207329,2708.4,2708.3,0.833]
[1645930426239,1.61949406,2708.4,2708.3,0.833]
[1645930426440,1.61949406,2708.4,2708.3,1.833]
[1645930428241,1.61949406,2708.4,2708.3,0.833]
[1645930430279,1.61949406,2708.4,2708.3,0.533]
[1645930431488,1.61949406,2708.4,2708.3,0.833]
[1645930432142,1.61949406,2708.4,2708.3,1.833]
[1645930432330,1.61949406,2708.4,2708.3,2.02184763]
[1645930433132,1.61949406,2708.4,2708.3,3.02184763]
[1645930433633,1.61949406,2708.4,2708.3,1.833]
[1645930433834,1.61949406,2708.4,2708.3,0.833]
[1645930434430,1.61949406,2708.4,2708.3,1.833]
[1645930434836,1.61949406,2708.4,2708.3,3.10485683]
[1645930435236,1.61949406,2708.4,2708.3,4.10485683]
[1645930435636,1.61949406,2708.4,2708.3,3.10485683]
[1645930436072,1.61949406,2708.4,2708.3,4.10485683]
[1645930436677,1.61949406,2708.4,2708.3,3.10485683]
[1645930436873,1.61949406,2708.4,2708.3,2.10485683]
[1645930437478,1.56949406,2708.4,2708.3,2.10485683]
[1645930438879,1.56949406,2708.4,2708.3,0.833]
[1645930442338,1.56949406,2708.4,2708.1,0.3]
[1645930442540,0.00566155,2708.5,2708.2,0.3]
[1645930442738,1.56949406,2708.3,2708.0,0.833]
[1645930442941,1.56949406,2708.1,2708.0,0.833]
[1645930445383,1.56949406,2708.1,2708.0,0.533]
[1645930445586,1.56949406,2708.1,2707.9,3.15101036]
[1645930445587,1.93889406,2708.1,2707.9,1.3]
[1645930445785,1.93889406,2708.1,2707.7,0.3]
[1645930445984,1.93889406,2708.1,2707.9,0.00461036]
[1645930446785,1.93889406,2708.1,2707.5,3.0633]
[1645930446987,1.56949406,2707.6,2707.5,0.533]
[1645930448333,1.56949406,2707.6,2707.5,0.833]
[1645930448735,1.56949406,2707.6,2707.5,0.533]
[1645930449340,1.56949406,2707.8,2707.5,0.533]
[1645930449937,1.56949406,2707.8,2707.5,0.833]
[1645930450739,1.56949406,2707.8,2707.5,0.83710376]
[1645930451588,1.56949406,2707.8,2707.5,0.833]
[1645930451788,1.56949406,2707.8,2707.5,0.83761095]
[1645930452395,0.00566117,2708.1,2707.5,0.83761095]
[1645930452591,1.56949406,2707.7,2707.5,0.83761095]
[1645930452789,1.56949406,2707.7,2707.5,0.833]
[1645930452991,1.56949406,2707.7,2707.5,1.833]
[1645930453189,1.56949406,2707.7,2707.5,0.833]
[1645930453389,1.56949406,2707.7,2707.6,1.0]
[1645930453991,1.56949406,2707.7,2707.5,1.133]
[1645930454190,1.56949406,2707.7,2707.5,0.83761095]
[1645930454391,1.56949406,2707.7,2707.5,1.98531095]
[1645930454640,1.56949406,2707.7,2707.6,1.0]
[1645930454834,0.00566117,2708.1,2707.6,1.0]
[1645930455039,0.00566117,2708.1,2707.5,1.28531095]
[1645930455337,1.56949406,2708.0,2707.7,1.0]
[1645930455536,1.56949406,2708.0,2707.7,1.00461061]
[1645930455938,1.56949406,2708.0,2707.7,0.00461061]
[1645930456136,1.56949406,2707.8,2707.7,0.00461061]
[1645930456335,1.5402,2708.2,2707.6,1.3]
[1645930456535,1.51949406,2707.9,2707.5,0.9807]
[1645930456735,1.51949406,2707.9,2707.7,0.00461061]
[1645930457539,1.51949406,2707.9,2707.5,1.9807]
[1645930457938,1.51949406,2707.9,2707.7,0.0046107]
[1645930458981,1.51949406,2707.9,2707.5,0.3]
[1645930459184,1.51949406,2707.9,2707.7,0.0046107]
[1645930459983,1.51949406,2707.9,2707.5,0.3]
[1645930460186,1.51949406,2707.9,2707.3,1.30738438]
[1645930460187,1.5402,2708.2,2707.3,2.60738438]
[1645930460383,0.00526905,2708.1,2707.3,2.14038438]
[1645930460584,1.51949406,2707.6,2707.3,3.14038438]
[1645930460782,1.51949406,2707.6,2707.3,4.14038438]
[1645930461183,1.51949406,2707.6,2707.3,5.52871287]
[1645930461383,1.51949406,2707.6,2707.3,4.53332416]
[1645930461584,1.51949406,2707.6,2707.3,3.14499567]
[1645930462431,1.51949406,2707.6,2707.3,3.14038438]
[1645930462634,1.51949406,2707.6,2707.3,2.14448844]
[1645930462836,1.51949406,2707.6,2707.3,3.14448844]
[1645930463032,0.00511642,2708.1,2707.3,2.14448844]
[1645930463231,0.00511642,2708.1,2707.3,1.83710406]
[1645930463431,0.00511642,2708.1,2707.3,0.83710406]
[1645930463631,1.5402,2708.2,2707.3,0.833]
[1645930463831,0.00514299,2708.1,2707.6,0.00410368]
[1645930464038,1.51949406,2707.7,2707.6,0.00410368]
[1645930464835,1.51949406,2707.7,2707.5,0.3]
[1645930465037,1.51949406,2707.7,2707.5,0.30410376]
[1645930466179,1.51949406,2707.7,2707.5,0.3]
[1645930466378,1.51949406,2707.7,2707.5,0.30461104]
[1645930468382,1.51949406,2707.7,2707.5,0.3]
[1645930468582,1.51949406,2707.7,2707.5,0.30461104]
[1645930469628,1.51949406,2707.7,2707.5,0.3]
[1645930469832,1.51949406,2707.7,2707.5,0.30461104]
[1645930470738,1.51949406,2707.7,2707.5,0.3]
[1645930471132,1.51949406,2707.7,2707.5,0.30461104]
[1645930471936,1.51949406,2707.7,2707.5,0.3]
[1645930472338,1.51949406,2707.7,2707.5,0.00461104]
[1645930473381,1.51949406,2707.7,2707.3,1.0]
[1645930473576,1.51949406,2707.7,2707.5,0.00461104]
[1645930474375,1.51949406,2707.7,2707.3,1.0]
[1645930474780,1.51949406,2707.7,2707.5,0.00461104]
[1645930475580,1.51949406,2707.7,2707.2,3.44686]
[1645930475781,1.51949406,2707.7,2707.2,2.44686]
[1645930475985,0.00529334,2708.1,2707.5,0.00461104]
[1645930476781,12.8002,2708.2,2707.2,3.44686]
[1645930476981,0.3694,2708.0,2707.7,0.0046107]
[1645930477833,1.51949406,2707.8,2707.7,0.0046107]
[1645930478132,1.51949406,2707.8,2707.4,1.3]
[1645930478335,1.51949406,2707.8,2707.7,0.00461061]
[1645930478933,0.00529368,2708.1,2707.7,0.00461061]
[1645930479136,1.51949406,2708.0,2707.7,0.00461061]
[1645930479334,1.51949406,2708.0,2707.6,1.0]
[1645930479533,1.51949406,2708.0,2707.6,1.00461078]
[1645930479735,1.51949406,2708.0,2707.6,0.00461078]
[1645930479935,1.5183625,2708.0,2707.6,0.00461078]
[1645930480136,0.00529354,2708.1,2707.6,0.00461078]
[1645930480335,1.5183625,2707.7,2707.5,1.8467]
[1645930480535,1.5183625,2707.7,2707.5,3.3797]
[1645930480736,1.5183625,2707.7,2707.5,2.3797]
[1645930480981,1.5183625,2708.0,2707.6,1.3]
[1645930481186,1.5183625,2708.0,2707.6,1.833]
[1645930482180,1.5183625,2708.0,2707.7,0.0046107]
[1645930482880,1.5183625,2708.0,2707.6,1.833]
[1645930483081,1.5183625,2708.0,2707.7,0.00461061]
[1645930483883,1.5183625,2708.0,2707.9,1.0]
[1645930484084,1.5183625,2708.0,2707.9,1.533]
[1645930484282,1.5183625,2708.0,2707.9,1.833]
[1645930486342,0.00529381,2708.1,2708.0,2.80906652]
[1645930486343,9.381e-05,2708.1,2708.0,2.80906652]
[1645930486545,0.00272555,2708.7,2708.2,0.0008]
[1645930486740,1.2096,2709.6,2708.4,5.17688021]
[1645930486741,0.02116997,2708.8,2708.4,5.17688021]
[1645930486941,3.6256,2709.4,2708.7,7.666]
[1645930487140,0.00272555,2709.1,2708.9,0.5]
[1645930487338,3.6256,2709.4,2709.0,0.533]
[1645930487738,3.6256,2709.4,2709.0,0.71308108]
[1645930488141,3.6256,2709.4,2709.0,0.533]
[1645930488377,3.6256,2709.4,2708.9,0.6]
[1645930488579,3.6256,2709.4,2708.9,0.3]
[1645930488580,1.55966639,2709.3,2708.9,0.3]
[1645930488779,1.55966639,2709.3,2708.7,0.833]
[1645930488986,1.55966639,2709.3,2708.9,0.533]
[1645930489184,1.56357743,2709.3,2708.9,0.533]
[1645930489983,1.55966639,2709.3,2708.9,0.533]
[1645930490385,0.00391104,2709.2,2708.9,0.533]
[1645930491184,3.6256,2709.4,2708.9,0.533]
[1645930491589,0.00531319,2709.2,2708.9,0.533]
[1645930492432,3.6256,2709.4,2708.9,0.533]
[1645930492629,0.00533935,2709.2,2708.9,0.533]
[1645930493231,11.63473935,2709.2,2708.6,0.004675]
[1645930493831,0.3694,2709.2,2708.4,0.3]
[1645930494033,0.3694,2709.2,2708.6,0.004675]
[1645930494034,0.00533943,2709.0,2708.6,0.004675]
[1645930494836,0.3694,2709.1,2708.2,3.1469]
[1645930495035,0.00272555,2709.0,2708.2,3.98866445]
[1645930495236,0.00533948,2708.9,2708.6,0.004675]
[1645930496081,0.37212555,2709.3,2708.2,3.6799]
[1645930496482,0.00529093,2708.9,2708.6,0.00467501]
[1645930497283,0.00272555,2709.3,2708.5,1.89387533]
[1645930497582,0.00272555,2709.3,2708.7,0.92304]
[1645930497781,0.00529093,2708.9,2708.7,1.22304]
[1645930498482,3.99772555,2709.4,2708.7,1.22304]
[1645930498683,0.00529101,2708.9,2708.7,1.22304]
[1645930499740,0.00272555,2709.3,2708.7,1.22304]
[1645930499941,0.00529425,2708.9,2708.7,0.3]
[1645930500141,0.00529425,2708.9,2708.6,0.004675]
[1645930500941,15.25772555,2709.4,2708.5,0.833]
[1645930501143,0.00529418,2708.9,2708.6,0.00467501]
[1645930502149,3.62832555,2709.4,2708.5,0.833]
[1645930502443,0.00529418,2708.9,2708.6,0.00467501]
[1645930503241,3.62832555,2709.4,2708.5,0.833]
[1645930503482,0.00529396,2708.9,2708.6,0.00467501]
[1645930504484,3.62832555,2709.4,2708.5,0.833]
[1645930504887,0.00529396,2708.9,2708.6,0.00467501]
[1645930505692,3.99772555,2709.4,2708.5,0.833]
[1645930505891,0.00529396,2708.9,2708.6,0.00467501]
[1645930506890,3.62832555,2709.4,2708.5,1.833]
[1645930507153,3.62832555,2709.4,2708.6,0.00467501]
[1645930507154,0.00530401,2708.9,2708.6,0.00467501]
[1645930507540,0.00530401,2708.9,2708.6,1.00467501]
[1645930507942,0.00530401,2708.9,2708.7,0.92304]
[1645930508141,3.62832555,2709.4,2708.7,1.22304]
[1645930508340,0.00530401,2708.9,2708.7,1.22304]
[1645930509344,0.00272555,2709.3,2708.7,1.22304]
[1645930509544,0.00530409,2708.9,2708.7,1.22304]
[1645930510150,0.0039416,2708.9,2708.7,1.22304]
[1645930510548,3.62832555,2709.4,2708.7,1.22304]
[1645930510751,3.6256,2709.4,2708.7,1.52304]
[1645930510989,3.6256,2709.4,2708.7,2.05604]
[1645930511288,3.6256,2709.4,2708.9,1.0]
[1645930514490,0.00566114,2709.3,2708.9,1.0]
[1645930514944,0.00566114,2709.3,2708.8,0.3]
[1645930514945,0.00566114,2709.3,2709.2,1.0]
[1645930515152,0.00566114,2709.3,2709.2,1.533]
[1645930515445,3.6256,2709.4,2709.2,1.833]
[1645930515642,3.6256,2709.4,2709.3,1.0]
[1645930515842,3.6256,2709.4,2709.3,2.88146922]
[1645930516042,0.02264126,2709.6,2709.3,4.10424922]
[1645930516244,0.02264126,2709.6,2709.3,4.40424922]
[1645930516444,0.00272555,2709.8,2709.3,4.40424922]
[1645930516645,1.1388,2709.9,2709.3,4.40424922]
[1645930516845,0.00566098,2709.6,2709.3,4.40424922]
[1645930517143,0.00566098,2709.6,2709.3,2.133]
[1645930517443,0.00566098,2709.6,2709.3,0.833]
[1645930517643,0.00272555,2709.8,2709.3,0.833]
[1645930517849,0.00272555,2710.1,2709.3,1.75576]
[1645930518043,0.00566098,2709.6,2709.3,2.05576]
[1645930518688,0.00566098,2709.6,2709.3,0.833]
[1645930518888,4.73622555,2710.4,2709.3,0.833]
[1645930519088,1.55940846,2710.3,2709.3,0.833]
[1645930519292,0.00566098,2709.6,2709.3,0.833]
[1645930521294,0.00272555,2710.3,2709.3,0.833]
[1645930521494,0.00566098,2709.6,2709.3,0.833]
[1645930522140,11.51042706,2710.3,2709.3,0.833]
[1645930522333,1.55935542,2710.2,2709.3,0.833]
[1645930524839,1.55935542,2710.1,2709.3,0.833]
[1645930525042,5.1029,2710.4,2709.3,0.833]
[1645930525239,1.55936591,2710.3,2709.3,0.833]
[1645930525645,0.00271604,2710.2,2709.3,0.833]
[1645930526292,0.00271604,2710.2,2709.6,0.00474745]
[1645930526293,0.00566031,2710.1,2709.6,0.00474745]
[1645930526495,1.55936591,2710.0,2709.6,0.00474745]
[1645930527291,1.55936591,2710.0,2709.3,0.833]
[1645930527493,0.00566038,2710.1,2709.7,0.00474736]
[1645930527691,1.55936965,2710.0,2709.7,0.00474736]
[1645930528296,0.00566038,2710.1,2709.7,0.00474736]
[1645930528492,1.55931675,2710.0,2709.3,2.05581]
[1645930528692,0.00271604,2710.3,2709.3,2.05581]
[1645930528892,1.56201491,2710.3,2709.3,2.05581]
[1645930529942,1.56201491,2710.3,2709.7,0.00142421]
[1645930530639,1.93141491,2710.3,2709.7,0.00142421]
[1645930530843,1.55929887,2710.2,2709.3,2.05581]
[1645930531239,0.0056607,2710.1,2709.7,0.0047447]
[1645930531441,1.55929887,2710.0,2709.7,0.0047447]
[1645930531840,0.0056607,2710.1,2709.7,0.0047447]
[1645930532039,0.37211604,2710.3,2709.3,2.05581]
[1645930532239,1.55927887,2710.2,2709.3,2.05581]
[1645930532439,0.0056605,2710.1,2709.7,0.0047447]
[1645930532940,1.55928204,2710.0,2709.7,0.0047447]
[1645930533142,0.0056605,2710.1,2709.7,0.0047447]
[1645930533389,0.37211604,2710.3,2709.3,2.05581]
[1645930533590,0.0056605,2710.1,2709.7,0.0047447]
[1645930534590,0.37211604,2710.3,2709.3,2.05581]
[1645930534795,0.00566058,2710.1,2709.7,0.0047447]
[1645930535798,0.37211604,2710.3,2709.3,3.59582992]
[1645930536001,0.00566058,2710.1,2709.7,0.0047447]
[1645930536997,0.3694,2710.2,2709.3,2.05581]
[1645930537234,0.00837662,2710.1,2709.7,0.0047447]
[1645930537434,0.00566058,2710.1,2709.7,0.0047447]
[1645930538133,0.3694,2710.2,2709.3,2.05581]
[1645930538333,1.56767383,2710.1,2709.7,0.0047447]
[1645930538537,0.00566058,2710.1,2709.7,0.0047447]
[1645930539234,0.00271604,2710.3,2709.3,2.05581]
[1645930539433,0.00271604,2710.1,2709.3,2.05581]
[1645930539636,0.00566058,2710.1,2709.7,0.0047447]
[1645930540539,11.63211604,2710.3,2709.3,2.05581]
[1645930540742,0.00566058,2710.1,2709.7,0.0047447]
[1645930541788,0.00566058,2710.1,2709.3,2.05581]
[1645930541789,11.63211604,2710.3,2709.3,2.05581]
[1645930541991,0.00566058,2710.1,2709.7,0.0047447]
[1645930542991,0.37211604,2710.3,2709.3,2.05581]
[1645930543190,0.00566058,2710.1,2709.7,0.0047447]
[1645930544191,0.00271604,2710.3,2709.3,2.05581]
[1645930544192,0.00271604,2710.3,2709.4,3.5]
[1645930544393,0.00271604,2710.3,2709.7,0.0047447]
[1645930544394,0.00566058,2710.1,2709.7,0.0047447]
[1645930544653,0.00566058,2710.1,2709.8,0.6499178]
[1645930544852,0.00566058,2710.1,2709.8,0.9499178]
[1645930545251,0.00271604,2710.7,2709.9,3.5]
[1645930545452,1.55882739,2711.1,2710.4,1.32201176]
[1645930545652,0.0226372,2710.8,2710.5,0.533]
[1645930546459,0.00271604,2711.1,2710.5,0.533]
[1645930546652,1.55879937,2711.1,2710.5,0.533]
[1645930546854,0.00566036,2710.8,2710.5,0.533]
[1645930547654,3.66561604,2711.2,2710.5,0.533]
[1645930547954,0.00566036,2710.8,2710.5,0.533]
[1645930548992,3.66561604,2711.2,2710.5,0.533]
[1645930549190,1.5587673,2711.1,2710.5,0.533]
[1645930549388,0.00566036,2710.8,2710.5,0.533]
[1645930550194,3.66561604,2711.2,2710.5,0.533]
[1645930550395,0.00566036,2710.8,2710.5,0.533]
[1645930550995,0.00428041,2710.8,2710.5,0.533]
[1645930551397,3.66561604,2711.2,2710.5,0.533]
[1645930551601,1.55882863,2711.1,2710.5,0.533]
[1645930551897,1.55882863,2711.1,2710.3,0.3]
[1645930552152,0.3694,2710.7,2709.8,0.1169178]
[1645930552344,0.3694,2710.5,2709.8,0.1169178]
[1645930552942,0.3694,2710.5,2709.9,0.00142433]
[1645930553743,0.3694,2710.5,2709.8,0.1169178]
[1645930553943,0.37506032,2710.5,2709.9,0.00474777]
[1645930554749,1.55915559,2710.4,2709.9,0.00474777]
[1645930554949,1.55915559,2710.4,2709.8,0.1169178]
[1645930555149,1.55915559,2710.4,2709.9,0.00474777]
[1645930555549,0.00566032,2710.5,2709.9,0.00474777]
[1645930555751,1.55911579,2710.4,2709.9,0.00474777]
[1645930556295,1.55911579,2710.4,2709.8,0.1169178]
[1645930556496,11.63506024,2710.5,2709.9,0.00474777]
[1645930556898,5.52662313,2710.4,2709.9,0.00474777]
[1645930557101,3.9675,2710.4,2709.9,0.00474777]
[1645930557299,3.9675,2710.4,2709.5,4.3526]
[1645930557498,0.00271604,2710.3,2709.5,4.0526]
[1645930557699,0.00271604,2710.3,2709.9,0.00433559]
[1645930557898,1.55920092,2710.3,2709.9,0.00433559]
[1645930558601,1.55920092,2710.3,2709.5,4.0526]
[1645930558800,1.51191696,2710.3,2709.9,0.00433559]
[1645930558998,15.5969,2710.4,2709.9,0.00433559]
[1645930559635,4.3369,2710.4,2709.9,0.00433559]
[1645930559846,4.3369,2710.4,2709.5,4.0526]
[1645930560043,0.00271604,2710.3,2709.9,0.00433559]
[1645930560241,4.3369,2710.4,2709.9,0.00433559]
[1645930560643,3.9675,2710.4,2709.9,0.00433559]
[1645930561043,3.9675,2710.4,2709.6,0.92272]
[1645930561244,3.9675,2710.4,2709.9,0.00474777]
[1645930562243,3.9675,2710.4,2709.6,0.92272]
[1645930562444,3.9675,2710.4,2709.9,0.00474777]
[1645930564493,3.9675,2710.4,2709.6,0.92272]
[1645930564689,3.9675,2710.4,2709.9,0.5]
[1645930564890,3.9675,2710.4,2709.9,0.50402771]
[1645930565692,3.9675,2710.4,2709.9,0.5]
[1645930566092,3.9675,2710.4,2709.9,0.50402771]
[1645930567145,3.9675,2710.4,2709.9,0.5]
[1645930567333,3.9675,2710.4,2709.9,0.50402771]
[1645930567735,3.9675,2710.4,2709.9,1.03702771]
[1645930568134,3.9675,2710.4,2710.0,0.92256]
[1645930568334,3.9675,2710.4,2710.1,0.533]
[1645930568936,3.7175,2710.4,2710.1,0.53156363]
[1645930569333,0.00271604,2710.7,2710.1,0.53156363]
[1645930569534,0.00386383,2710.5,2710.1,0.53156363]
[1645930569749,0.00386383,2710.5,2710.1,0.83156363]
[1645930569941,0.00386383,2710.5,2710.2,4.5]
[1645930570140,0.00386383,2710.5,2710.3,0.533]
[1645930570340,0.00386383,2710.5,2710.4,1.37605495]
[1645930570540,1.14341604,2711.3,2710.4,6.40905495]
[1645930570742,1.14341604,2711.3,2710.5,1.84462]
[1645930570743,0.00271604,2711.3,2710.5,1.84462]
[1645930570994,0.00271604,2711.3,2710.9,1.0]
[1645930571190,11.6294,2711.8,2710.9,1.0]
[1645930571191,0.00271604,2711.7,2710.9,1.0]
[1645930571390,3.7101,2711.7,2710.9,1.0]
[1645930571591,3.7101,2711.7,2710.9,1.533]
[1645930572395,3.7101,2711.7,2710.9,2.45527]
[1645930572590,3.7101,2711.7,2710.9,2.75527]
[1645930572795,3.7101,2711.7,2711.0,3.5]
[1645930573095,3.7101,2711.7,2711.5,1.0]
[1645930573291,0.00971604,2712.1,2711.5,1.0]
[1645930573490,0.007,2712.1,2711.5,1.0]
[1645930573893,0.007,2712.1,2711.4,1.43518249]
[1645930574093,0.007,2712.1,2711.4,1.66818249]
[1645930574294,0.007,2712.1,2711.4,0.833]
[1645930574496,0.007,2712.1,2711.4,0.533]
[1645930574497,0.00423607,2711.9,2711.4,0.533]
[1645930575352,0.007,2712.1,2711.4,0.533]
[1645930575554,0.00423607,2711.8,2711.4,0.533]
[1645930576656,0.007,2712.1,2711.4,0.533]
[1645930576855,0.00566435,2711.7,2711.4,0.533]
[1645930577460,0.00566435,2711.7,2711.1,0.533]
[1645930577856,0.00971604,2712.1,2711.1,0.533]
[1645930578057,0.00566437,2711.7,2711.1,0.533]
[1645930578887,0.00971604,2712.1,2711.1,0.533]
[1645930579087,13.18790522,2712.0,2711.1,0.533]
[1645930579288,0.00566445,2711.5,2711.1,0.533]
[1645930580100,0.02537045,2711.9,2710.8,1.0]
[1645930580101,11.6294,2711.8,2710.8,1.0]
[1645930580294,18.18802416,2711.7,2710.7,0.25]
[1645930580496,18.18802416,2711.7,2710.6,2.84458]
[1645930580497,0.0056645,2711.4,2710.6,2.84458]
[1645930581195,0.0056645,2711.4,2710.6,1.84458]
[1645930581395,0.00271604,2711.6,2710.6,1.84458]
[1645930581396,0.00271604,2711.6,2710.6,2.84458]
[1645930581594,1.93078896,2711.6,2710.6,2.84458]
[1645930581794,0.00566466,2711.1,2710.6,2.84458]
[1645930582937,0.00566474,2711.0,2710.6,2.84458]
[1645930583137,0.00566474,2711.0,2710.6,1.84458]
[1645930583738,12.69965071,2711.6,2710.6,1.84458]
[1645930583937,11.63211604,2711.6,2710.6,1.84458]
[1645930584339,0.00566477,2710.9,2710.6,1.84458]
[1645930584941,11.63211604,2711.6,2710.6,1.84458]
[1645930585347,0.00566479,2710.9,2710.6,1.84458]
[1645930586199,11.63211604,2711.6,2710.6,1.84458]
[1645930586402,0.00566479,2710.9,2710.6,1.84458]
[1645930586603,0.00566479,2710.9,2710.7,0.533]
[1645930586802,0.00566479,2710.9,2710.7,1.45516]
[1645930587002,0.00566479,2710.9,2710.8,1.0]
[1645930587203,0.00566479,2710.9,2710.8,1.833]
[1645930587401,0.00271604,2711.6,2710.8,1.833]
[1645930587601,0.00566474,2711.0,2710.8,5.333]
[1645930587801,0.00566474,2711.0,2710.8,2.833]
[1645930588202,0.00566474,2711.0,2710.8,0.833]
[1645930588403,0.00566474,2711.0,2710.9,0.92218]
[1645930588603,1.14941604,2711.7,2710.9,0.92218]
[1645930588903,0.00566472,2711.0,2710.9,1.22218]
[1645930589849,0.00566472,2711.0,2710.9,6.55518]
[1645930590152,0.00566469,2711.1,2710.9,6.73526108]
[1645930590345,0.00566469,2711.1,2710.9,7.73526108]
[1645930590547,0.00566469,2711.1,2710.9,6.73526108]
[1645930590743,0.00566469,2711.1,2711.0,1.0]
[1645930590944,0.00271604,2711.7,2711.0,1.533]
[1645930591245,0.00566466,2711.1,2711.0,1.533]
[1645930592547,0.00271604,2711.7,2711.1,1.11164834]
[1645930592743,3.7003,2711.8,2711.2,0.533]
[1645930592943,0.00971604,2712.1,2711.2,4.4024]
[1645930593148,0.00971604,2712.1,2711.2,0.9024]
[1645930593387,0.00971604,2712.1,2711.2,1.9024]
[1645930593590,0.00402537,2711.8,2711.2,0.9024]